[Event "*** Titled Tuesday Blitz"]
[Site "Chess.com"]
[Date "2021.04.20"]
[Round "6"]
[White "yuki_chess123"]
[Black "Qvalda"]
[Result "1-0"]
[WhiteElo "2257"]
[BlackElo "2432"]
[TimeControl "180+1"]
[EndTime "11:06:44 PDT"]
[Termination "yuki_chess123 won by checkmate"]

1. e4 {[%clk 0:03:00.9]} 1... d6 {[%clk 0:03:00]} 2. d4 {[%clk 0:03:00.6]} 2...
Nf6 {[%clk 0:02:59.6]} 3. f3 {[%clk 0:03:01.1]} 3... e5 {[%clk 0:02:56.7]} 4. d5
{[%clk 0:02:58.1]} 4... Be7 {[%clk 0:02:50.1]} 5. c4 {[%clk 0:02:58.1]} 5... Nh5
{[%clk 0:02:46.9]} 6. Nc3 {[%clk 0:02:58.3]} 6... Bg5 {[%clk 0:02:44.3]} 7. Nge2
{[%clk 0:02:56.5]} 7... a5 {[%clk 0:02:41.2]} 8. g3 {[%clk 0:02:55.5]} 8... Bxc1
{[%clk 0:02:38.8]} 9. Rxc1 {[%clk 0:02:52.6]} 9... Na6 {[%clk 0:02:38.3]} 10.
Rc2 {[%clk 0:02:23.2]} 10... Nc5 {[%clk 0:02:34.6]} 11. Nc1 {[%clk 0:02:23.3]}
11... Bd7 {[%clk 0:02:29.5]} 12. Nd3 {[%clk 0:02:23.2]} 12... b6 {[%clk
0:02:28.2]} 13. Nxc5 {[%clk 0:02:17.3]} 13... bxc5 {[%clk 0:02:29.1]} 14. f4
{[%clk 0:02:11]} 14... Nf6 {[%clk 0:02:21.5]} 15. fxe5 {[%clk 0:02:09.9]} 15...
Ng4 {[%clk 0:02:20]} 16. e6 {[%clk 0:02:07.6]} 16... Ne3 {[%clk 0:01:57.7]} 17.
exd7+ {[%clk 0:01:58.5]} 17... Qxd7 {[%clk 0:01:58.6]} 18. Qe2 {[%clk
0:01:55.2]} 18... Nxc2+ {[%clk 0:01:59]} 19. Qxc2 {[%clk 0:01:55.2]} 19... O-O
{[%clk 0:01:59.1]} 20. Bg2 {[%clk 0:01:46.1]} 20... f5 {[%clk 0:01:57.3]} 21.
Bh3 {[%clk 0:01:37.8]} 21... Qe7 {[%clk 0:01:43]} 22. O-O {[%clk 0:01:29.9]}
22... fxe4 {[%clk 0:01:42.1]} 23. Be6+ {[%clk 0:01:29.7]} 23... Kh8 {[%clk
0:01:41.8]} 24. Qxe4 {[%clk 0:01:20.7]} 24... Rxf1+ {[%clk 0:01:40.7]} 25. Kxf1
{[%clk 0:01:21.1]} 25... Rf8+ {[%clk 0:01:36.2]} 26. Kg2 {[%clk 0:01:21.6]}
26... Qg5 {[%clk 0:01:36.1]} 27. Qe2 {[%clk 0:01:17]} 27... Qc1 {[%clk
0:01:29.8]} 28. Nb5 {[%clk 0:01:03.3]} 28... Rb8 {[%clk 0:01:02.1]} 29. b3
{[%clk 0:01:02.8]} 29... Qb1 {[%clk 0:00:36.9]} 30. Nxc7 {[%clk 0:00:54.1]}
30... a4 {[%clk 0:00:36.8]} 31. Nb5 {[%clk 0:00:46.8]} 31... Rd8 {[%clk
0:00:29.4]} 32. Nc3 {[%clk 0:00:22.1]} 32... Qa1 {[%clk 0:00:23.4]} 33. Nxa4
{[%clk 0:00:20.8]} 33... Rf8 {[%clk 0:00:19.9]} 34. Nb6 {[%clk 0:00:17.1]} 34...
Qd4 {[%clk 0:00:19.3]} 35. Nd7 {[%clk 0:00:16.3]} 35... Ra8 {[%clk 0:00:16.7]}
36. Bg4 {[%clk 0:00:14.1]} 36... h6 {[%clk 0:00:14.8]} 37. Be6 {[%clk
0:00:13.2]} 37... Rd8 {[%clk 0:00:13.5]} 38. h4 {[%clk 0:00:12.7]} 38... Ra8
{[%clk 0:00:13]} 39. Nb6 {[%clk 0:00:11.5]} 39... Rb8 {[%clk 0:00:11.8]} 40. Nc8
{[%clk 0:00:11.5]} 40... Qa1 {[%clk 0:00:10.9]} 41. Nxd6 {[%clk 0:00:10.9]}
41... Ra8 {[%clk 0:00:10.5]} 42. Nf7+ {[%clk 0:00:08]} 42... Kg8 {[%clk
0:00:10.8]} 43. Nxh6+ {[%clk 0:00:07.2]} 43... Kh8 {[%clk 0:00:10.6]} 44. Nf7+
{[%clk 0:00:07]} 44... Kg8 {[%clk 0:00:11]} 45. a4 {[%clk 0:00:06.1]} 45... Rb8
{[%clk 0:00:09.2]} 46. Ne5+ {[%clk 0:00:05.4]} 46... Kf8 {[%clk 0:00:08.8]} 47.
Qf2+ {[%clk 0:00:04.7]} 47... Ke7 {[%clk 0:00:08.5]} 48. Qf7+ {[%clk 0:00:04.5]}
48... Kd6 {[%clk 0:00:09]} 49. Qd7+ {[%clk 0:00:03.2]} 49... Kxe5 {[%clk
0:00:09.4]} 50. Qxg7+ {[%clk 0:00:03.4]} 50... Ke4 {[%clk 0:00:09.5]} 51. Qxa1
{[%clk 0:00:03.9]} 51... Rxb3 {[%clk 0:00:10.4]} 52. Qe1+ {[%clk 0:00:03.4]}
52... Kd4 {[%clk 0:00:10.2]} 53. d6 {[%clk 0:00:03.7]} 53... Rxg3+ {[%clk
0:00:07.8]} 54. Kxg3 {[%clk 0:00:03.4]} 54... Kd3 {[%clk 0:00:07.7]} 55. d7
{[%clk 0:00:02.9]} 55... Kc2 {[%clk 0:00:07.5]} 56. Qe5 {[%clk 0:00:03.3]} 56...
Kb3 {[%clk 0:00:07.4]} 57. d8=Q {[%clk 0:00:03.9]} 57... Kb4 {[%clk 0:00:07]}
58. Qec7 {[%clk 0:00:04.5]} 58... Ka3 {[%clk 0:00:06.2]} 59. Qxc5+ {[%clk
0:00:05.2]} 59... Kxa4 {[%clk 0:00:06.1]} 60. Qa8+ {[%clk 0:00:04.4]} 60... Kb3
{[%clk 0:00:06.1]} 61. Qb5+ {[%clk 0:00:04.9]} 61... Kc3 {[%clk 0:00:06.4]} 62.
Qa3+ {[%clk 0:00:05.3]} 62... Kd4 {[%clk 0:00:06.7]} 63. Qd5# {[%clk 0:00:05.7]}
1-0

[Event "*** Titled Tuesday Blitz"]
[Site "Chess.com"]
[Date "2021.04.20"]
[Round "6"]
[White "elm2007"]
[Black "Koalaskakistis"]
[Result "1-0"]
[WhiteElo "2793"]
[BlackElo "2547"]
[TimeControl "180+1"]
[EndTime "11:06:45 PDT"]
[Termination "elm2007 won on time"]

1. e4 {[%clk 0:03:00.9]} 1... c5 {[%clk 0:02:57.3]} 2. Nf3 {[%clk 0:02:56]} 2...
Nc6 {[%clk 0:02:57.3]} 3. Bb5 {[%clk 0:02:46.4]} 3... Nf6 {[%clk 0:02:57.4]} 4.
e5 {[%clk 0:02:42.4]} 4... Nd5 {[%clk 0:02:54.2]} 5. O-O {[%clk 0:02:42.7]} 5...
Nc7 {[%clk 0:02:48.2]} 6. Bxc6 {[%clk 0:02:42.3]} 6... dxc6 {[%clk 0:02:49.1]}
7. h3 {[%clk 0:02:42.6]} 7... Bf5 {[%clk 0:02:49.1]} 8. d3 {[%clk 0:02:42.3]}
8... e6 {[%clk 0:02:49.3]} 9. Nc3 {[%clk 0:02:41.8]} 9... Be7 {[%clk 0:02:47.1]}
10. Qe2 {[%clk 0:02:42]} 10... Nb5 {[%clk 0:02:40.6]} 11. Nxb5 {[%clk
0:02:39.9]} 11... cxb5 {[%clk 0:02:40.8]} 12. Rd1 {[%clk 0:02:36.9]} 12... Qd5
{[%clk 0:02:31.9]} 13. c3 {[%clk 0:02:34]} 13... h6 {[%clk 0:02:23.8]} 14. a4
{[%clk 0:02:29.9]} 14... bxa4 {[%clk 0:02:20.4]} 15. Rxa4 {[%clk 0:02:30.8]}
15... O-O {[%clk 0:02:18.7]} 16. d4 {[%clk 0:02:25.5]} 16... Rfd8 {[%clk
0:02:08.2]} 17. Be3 {[%clk 0:02:21.6]} 17... b5 {[%clk 0:02:06.7]} 18. Ra5
{[%clk 0:01:32.6]} 18... c4 {[%clk 0:02:04.6]} 19. b3 {[%clk 0:01:29.5]} 19...
Qc6 {[%clk 0:01:52]} 20. bxc4 {[%clk 0:01:27.5]} 20... bxc4 {[%clk 0:01:30.4]}
21. d5 {[%clk 0:01:26.1]} 21... exd5 {[%clk 0:01:12.3]} 22. Nd4 {[%clk
0:01:24.6]} 22... Qg6 {[%clk 0:01:08.5]} 23. Nxf5 {[%clk 0:01:20.5]} 23... Qxf5
{[%clk 0:01:09.4]} 24. Raxd5 {[%clk 0:01:19.1]} 24... Rxd5 {[%clk 0:01:09.3]}
25. Rxd5 {[%clk 0:01:20]} 25... Qe4 {[%clk 0:01:07.6]} 26. Rd4 {[%clk
0:01:05.3]} 26... Qxe5 {[%clk 0:01:03.8]} 27. Qxc4 {[%clk 0:01:04.5]} 27... a5
{[%clk 0:00:40.9]} 28. Re4 {[%clk 0:00:57.2]} 28... Qd6 {[%clk 0:00:40.5]} 29.
Rd4 {[%clk 0:00:52.3]} 29... Qe6 {[%clk 0:00:34]} 30. Qa4 {[%clk 0:00:36.5]}
30... Bf6 {[%clk 0:00:31.6]} 31. Re4 {[%clk 0:00:35.7]} 31... Qd5 {[%clk
0:00:30.5]} 32. Rc4 {[%clk 0:00:27.6]} 32... h5 {[%clk 0:00:26]} 33. h4 {[%clk
0:00:24.7]} 33... g6 {[%clk 0:00:20.9]} 34. Rc5 {[%clk 0:00:21.8]} 34... Qd8
{[%clk 0:00:21.3]} 35. g3 {[%clk 0:00:20.2]} 35... Be7 {[%clk 0:00:18.1]} 36.
Rc4 {[%clk 0:00:20.3]} 36... Bf6 {[%clk 0:00:16.1]} 37. Kg2 {[%clk 0:00:16.7]}
37... Qd5+ {[%clk 0:00:15.2]} 38. Re4 {[%clk 0:00:16.2]} 38... Rc8 {[%clk
0:00:11.8]} 39. Kf1 {[%clk 0:00:14.3]} 39... Rxc3 {[%clk 0:00:11.6]} 40. Re8+
{[%clk 0:00:12]} 40... Kg7 {[%clk 0:00:11.9]} 41. Qf4 {[%clk 0:00:07.6]} 41...
Qh1+ {[%clk 0:00:10.1]} 42. Ke2 {[%clk 0:00:07.4]} 42... Rc2+ {[%clk 0:00:11]}
43. Bd2 {[%clk 0:00:07.2]} 43... Rxd2+ {[%clk 0:00:09]} 44. Qxd2 {[%clk
0:00:04.8]} 44... Qa1 {[%clk 0:00:04.1]} 45. Qd6 {[%clk 0:00:02.8]} 45... Qb2+
{[%clk 0:00:03.2]} 46. Kf3 {[%clk 0:00:01.9]} 46... Qb7+ {[%clk 0:00:02.8]} 47.
Ke3 {[%clk 0:00:02.3]} 47... Qb3+ {[%clk 0:00:02.9]} 48. Kf4 {[%clk 0:00:02.4]}
48... Qb4+ {[%clk 0:00:02.2]} 49. Qxb4 {[%clk 0:00:02.2]} 49... axb4 {[%clk
0:00:03.1]} 50. Rb8 {[%clk 0:00:02.8]} 50... Bc3 {[%clk 0:00:03.5]} 51. Ke4
{[%clk 0:00:03.2]} 51... Kf6 {[%clk 0:00:03.8]} 52. f3 {[%clk 0:00:03.7]} 52...
Kg7 {[%clk 0:00:03.2]} 53. Rb6 {[%clk 0:00:04.2]} 53... Kg8 {[%clk 0:00:01.7]}
54. g4 {[%clk 0:00:04.7]} 54... Kg7 {[%clk 0:00:02.6]} 55. gxh5 {[%clk
0:00:04.8]} 55... gxh5 {[%clk 0:00:03.5]} 56. Kf5 {[%clk 0:00:05.7]} 56... f6
{[%clk 0:00:03.3]} 57. Rb7+ {[%clk 0:00:05.5]} 57... Kh6 {[%clk 0:00:04]} 58. f4
{[%clk 0:00:05]} 1-0

[Event "*** Titled Tuesday Blitz"]
[Site "Chess.com"]
[Date "2021.04.20"]
[Round "6"]
[White "amintabatabaei"]
[Black "AlexTriapishko"]
[Result "1-0"]
[WhiteElo "2998"]
[BlackElo "2898"]
[TimeControl "180+1"]
[EndTime "11:06:47 PDT"]
[Termination "amintabatabaei won on time"]

1. e4 {[%clk 0:02:59.4]} 1... e5 {[%clk 0:02:58.6]} 2. Nc3 {[%clk 0:02:59.6]}
2... Nc6 {[%clk 0:02:58.2]} 3. Bc4 {[%clk 0:02:59.5]} 3... Nf6 {[%clk
0:02:57.9]} 4. d3 {[%clk 0:02:59.8]} 4... Na5 {[%clk 0:02:58.2]} 5. Bb3 {[%clk
0:02:58.1]} 5... Bc5 {[%clk 0:02:55]} 6. f4 {[%clk 0:02:55.8]} 6... Nxb3 {[%clk
0:02:10]} 7. axb3 {[%clk 0:02:56.7]} 7... d6 {[%clk 0:01:56.3]} 8. f5 {[%clk
0:02:49.9]} 8... d5 {[%clk 0:01:44.5]} 9. Qf3 {[%clk 0:02:50]} 9... Bb4 {[%clk
0:01:33.1]} 10. Bd2 {[%clk 0:02:48.3]} 10... Bxc3 {[%clk 0:01:25.7]} 11. Bxc3
{[%clk 0:02:44.3]} 11... dxe4 {[%clk 0:01:26]} 12. dxe4 {[%clk 0:02:45.2]} 12...
O-O {[%clk 0:01:24.3]} 13. Ne2 {[%clk 0:02:40.9]} 13... b6 {[%clk 0:01:21.5]}
14. Bxe5 {[%clk 0:02:02.8]} 14... Bb7 {[%clk 0:01:21.5]} 15. Bxf6 {[%clk
0:01:52.9]} 15... Qxf6 {[%clk 0:01:22.4]} 16. O-O-O {[%clk 0:01:45.8]} 16...
Rfe8 {[%clk 0:01:12.9]} 17. Nc3 {[%clk 0:01:46.2]} 17... Qe5 {[%clk 0:01:01]}
18. Rd7 {[%clk 0:01:42.2]} 18... Bc6 {[%clk 0:00:45.9]} 19. Rd3 {[%clk
0:01:27.7]} 19... Bxe4 {[%clk 0:00:43.5]} 20. Nxe4 {[%clk 0:01:25.3]} 20... Qxe4
{[%clk 0:00:44.4]} 21. Qxe4 {[%clk 0:01:22.8]} 21... Rxe4 {[%clk 0:00:45.3]} 22.
Rhd1 {[%clk 0:01:23.6]} 22... Kf8 {[%clk 0:00:38.8]} 23. Rd7 {[%clk 0:01:23.2]}
23... Re7 {[%clk 0:00:33.9]} 24. b4 {[%clk 0:01:23.4]} 24... Ke8 {[%clk
0:00:30.3]} 25. R7d5 {[%clk 0:01:14.6]} 25... f6 {[%clk 0:00:28.4]} 26. b3
{[%clk 0:01:10.8]} 26... Kf7 {[%clk 0:00:26.3]} 27. Kb2 {[%clk 0:01:03.4]} 27...
g6 {[%clk 0:00:26.4]} 28. g4 {[%clk 0:00:56.8]} 28... gxf5 {[%clk 0:00:16.3]}
29. Rxf5 {[%clk 0:00:55.4]} 29... Kg6 {[%clk 0:00:16.3]} 30. h4 {[%clk 0:00:52]}
30... h6 {[%clk 0:00:16.2]} 31. Rd4 {[%clk 0:00:46]} 31... Rae8 {[%clk
0:00:09.3]} 32. Rdf4 {[%clk 0:00:46.3]} 32... Re6 {[%clk 0:00:08.5]} 33. b5
{[%clk 0:00:46.7]} 33... R8e7 {[%clk 0:00:04.9]} 34. Rc4 {[%clk 0:00:38.4]}
34... Rd6 {[%clk 0:00:04.3]} 35. Rf3 {[%clk 0:00:29.9]} 35... Red7 {[%clk
0:00:02.3]} 36. h5+ {[%clk 0:00:22.5]} 36... Kg7 {[%clk 0:00:01.7]} 37. Rfc3
{[%clk 0:00:23.1]} 37... Kf7 {[%clk 0:00:01.3]} 38. Rxc7 {[%clk 0:00:23.4]}
38... Ke6 {[%clk 0:00:02.1]} 39. Rc8 {[%clk 0:00:21]} 39... Ke5 {[%clk
0:00:01.9]} 40. Rh8 {[%clk 0:00:16.3]} 40... Kf4 {[%clk 0:00:02.1]} 41. Rc4+
{[%clk 0:00:15]} 41... Rd4 {[%clk 0:00:02.5]} 42. Rxd4+ {[%clk 0:00:14.4]} 42...
Rxd4 {[%clk 0:00:03.4]} 43. Rxh6 {[%clk 0:00:15.1]} 43... Ke5 {[%clk 0:00:03.2]}
44. Rg6 {[%clk 0:00:15]} 44... Rd7 {[%clk 0:00:02.8]} 45. g5 {[%clk 0:00:11.6]}
45... fxg5 {[%clk 0:00:02.5]} 46. Rxg5+ {[%clk 0:00:12.5]} 46... Kf6 {[%clk
0:00:02.8]} 47. Rg1 {[%clk 0:00:11.8]} 47... Rd5 {[%clk 0:00:02.2]} 48. h6
{[%clk 0:00:08.8]} 48... Rh5 {[%clk 0:00:01.5]} 49. Ra1 {[%clk 0:00:06.5]} 49...
Rxh6 {[%clk 0:00:02]} 50. Rxa7 {[%clk 0:00:06.6]} 50... Ke5 {[%clk 0:00:02.9]}
51. Rc7 {[%clk 0:00:06.1]} 51... Kd5 {[%clk 0:00:02.8]} 52. Ka3 {[%clk
0:00:05.4]} 52... Kd4 {[%clk 0:00:02.4]} 53. Kb4 {[%clk 0:00:04.9]} 53... Rh2
{[%clk 0:00:01.1]} 54. c3+ {[%clk 0:00:04.9]} 54... Kd5 {[%clk 0:00:01.4]} 55.
c4+ {[%clk 0:00:04.9]} 55... Kd4 {[%clk 0:00:01.3]} 56. Rc6 {[%clk 0:00:05.8]}
1-0

[Event "*** Titled Tuesday Blitz"]
[Site "Chess.com"]
[Date "2021.04.20"]
[Round "6"]
[White "PavelChernomordik"]
[Black "Cambek64"]
[Result "1-0"]
[WhiteElo "2389"]
[BlackElo "2468"]
[TimeControl "180+1"]
[EndTime "11:06:48 PDT"]
[Termination "PavelChernomordik won on time"]

1. e4 {[%clk 0:03:00.9]} 1... e6 {[%clk 0:02:57.5]} 2. Nc3 {[%clk 0:02:59.8]}
2... d5 {[%clk 0:02:56.8]} 3. d4 {[%clk 0:02:59.7]} 3... Nc6 {[%clk 0:02:55.2]}
4. e5 {[%clk 0:02:51.5]} 4... Nge7 {[%clk 0:02:54.2]} 5. f4 {[%clk 0:02:48]}
5... Nf5 {[%clk 0:02:54.1]} 6. Nf3 {[%clk 0:02:47.7]} 6... b6 {[%clk 0:02:50.8]}
7. g3 {[%clk 0:02:36.6]} 7... Bb7 {[%clk 0:02:50]} 8. Ne2 {[%clk 0:02:30.3]}
8... Ba6 {[%clk 0:02:39.7]} 9. c3 {[%clk 0:02:27.6]} 9... Qd7 {[%clk 0:02:33]}
10. g4 {[%clk 0:02:21.5]} 10... Nfe7 {[%clk 0:02:31.8]} 11. Ng3 {[%clk
0:02:20.6]} 11... Bxf1 {[%clk 0:02:31.2]} 12. Kxf1 {[%clk 0:02:17.2]} 12...
O-O-O {[%clk 0:02:23.3]} 13. Qd3 {[%clk 0:02:15.8]} 13... Kb7 {[%clk 0:02:22.9]}
14. b4 {[%clk 0:02:12.4]} 14... f6 {[%clk 0:02:22.4]} 15. a4 {[%clk 0:02:09.7]}
15... a6 {[%clk 0:02:18.1]} 16. Kg2 {[%clk 0:02:05.4]} 16... fxe5 {[%clk
0:02:15.7]} 17. fxe5 {[%clk 0:01:59.6]} 17... Ra8 {[%clk 0:02:08.3]} 18. Bd2
{[%clk 0:01:54.9]} 18... h6 {[%clk 0:02:07]} 19. Nh5 {[%clk 0:01:49.3]} 19... a5
{[%clk 0:02:04.4]} 20. Rhb1 {[%clk 0:01:45.8]} 20... Qe8 {[%clk 0:01:51.5]} 21.
Nf4 {[%clk 0:01:42.9]} 21... Qf7 {[%clk 0:01:48.6]} 22. b5 {[%clk 0:01:30.9]}
22... Na7 {[%clk 0:01:36.7]} 23. c4 {[%clk 0:01:30.6]} 23... dxc4 {[%clk
0:01:35.3]} 24. Qxc4 {[%clk 0:01:29.7]} 24... Nd5 {[%clk 0:01:33.8]} 25. Nxd5
{[%clk 0:01:18.7]} 25... exd5 {[%clk 0:01:33.3]} 26. Qe2 {[%clk 0:01:18.9]}
26... Qe6 {[%clk 0:01:32.5]} 27. h3 {[%clk 0:01:16.6]} 27... Be7 {[%clk
0:01:30]} 28. Rc1 {[%clk 0:01:15.8]} 28... Rhf8 {[%clk 0:01:28.4]} 29. Rc2
{[%clk 0:01:08.9]} 29... Rae8 {[%clk 0:01:22.1]} 30. Rac1 {[%clk 0:01:07.7]}
30... Bd8 {[%clk 0:01:22.5]} 31. Ne1 {[%clk 0:01:01.3]} 31... Rf7 {[%clk
0:01:22.2]} 32. Nd3 {[%clk 0:01:00.3]} 32... Ref8 {[%clk 0:01:22.1]} 33. Bxa5
{[%clk 0:00:51.5]} 33... Qg6 {[%clk 0:01:11.9]} 34. Bb4 {[%clk 0:00:47.3]} 34...
h5 {[%clk 0:01:10]} 35. Bxf8 {[%clk 0:00:45.5]} 35... Rxf8 {[%clk 0:01:07.2]}
36. a5 {[%clk 0:00:42.3]} 36... hxg4 {[%clk 0:01:06]} 37. hxg4 {[%clk
0:00:42.1]} 37... Bg5 {[%clk 0:01:02.2]} 38. Rf1 {[%clk 0:00:40.3]} 38... Rh8
{[%clk 0:00:55.1]} 39. Qf3 {[%clk 0:00:37.4]} 39... Kb8 {[%clk 0:00:50.3]} 40.
Rh1 {[%clk 0:00:36]} 40... Rd8 {[%clk 0:00:48.2]} 41. axb6 {[%clk 0:00:35.2]}
41... Qxb6 {[%clk 0:00:44.6]} 42. Nc5 {[%clk 0:00:33.8]} 42... Nxb5 {[%clk
0:00:37.7]} 43. Rh8 {[%clk 0:00:32.1]} 43... Nxd4 {[%clk 0:00:33.3]} 44. Rxd8+
{[%clk 0:00:30.2]} 44... Bxd8 {[%clk 0:00:33.3]} 45. Nd7+ {[%clk 0:00:29.7]}
45... Kb7 {[%clk 0:00:24.4]} 46. Qxd5+ {[%clk 0:00:28.5]} 46... c6 {[%clk
0:00:24.9]} 47. Nxb6 {[%clk 0:00:25.3]} 47... cxd5 {[%clk 0:00:21.9]} 48. Nxd5
{[%clk 0:00:21.8]} 48... Ne6 {[%clk 0:00:20.3]} 49. Rd2 {[%clk 0:00:19.3]} 49...
Kc6 {[%clk 0:00:19.6]} 50. Kf3 {[%clk 0:00:18.7]} 50... Bg5 {[%clk 0:00:11.1]}
51. Rd3 {[%clk 0:00:18.2]} 51... Nc5 {[%clk 0:00:10.2]} 52. Rd1 {[%clk
0:00:17.6]} 52... Ne6 {[%clk 0:00:05]} 53. Ke4 {[%clk 0:00:17.2]} 53... g6
{[%clk 0:00:04.6]} 54. Nf6 {[%clk 0:00:14.5]} 54... Nc5+ {[%clk 0:00:03.6]} 55.
Kf3 {[%clk 0:00:14.2]} 55... Ne6 {[%clk 0:00:03.2]} 56. Rd6+ {[%clk 0:00:13.7]}
1-0

[Event "*** Titled Tuesday Blitz"]
[Site "Chess.com"]
[Date "2021.04.20"]
[Round "6"]
[White "Michaelson_11"]
[Black "lamomiablanca"]
[Result "0-1"]
[WhiteElo "2218"]
[BlackElo "2410"]
[TimeControl "180+1"]
[EndTime "11:06:48 PDT"]
[Termination "lamomiablanca won on time"]

1. e4 {[%clk 0:03:00.9]} 1... c5 {[%clk 0:02:59.7]} 2. Nf3 {[%clk 0:02:58.7]}
2... Nc6 {[%clk 0:02:59.8]} 3. d4 {[%clk 0:02:59.6]} 3... cxd4 {[%clk
0:03:00.7]} 4. Nxd4 {[%clk 0:03:00.2]} 4... g6 {[%clk 0:03:00.4]} 5. c4 {[%clk
0:02:59.3]} 5... Nf6 {[%clk 0:02:59.9]} 6. Nc3 {[%clk 0:02:58.6]} 6... d6 {[%clk
0:03:00.2]} 7. f3 {[%clk 0:02:58.1]} 7... Nxd4 {[%clk 0:02:58.9]} 8. Qxd4 {[%clk
0:02:59]} 8... Bg7 {[%clk 0:02:58.7]} 9. Be3 {[%clk 0:02:59.6]} 9... O-O {[%clk
0:02:58.1]} 10. Qd2 {[%clk 0:03:00.1]} 10... a5 {[%clk 0:02:56.7]} 11. Na4
{[%clk 0:02:59.9]} 11... Nd7 {[%clk 0:02:50.5]} 12. Rc1 {[%clk 0:02:54.2]} 12...
b6 {[%clk 0:02:42.6]} 13. b3 {[%clk 0:02:36.6]} 13... Bb7 {[%clk 0:02:40.3]} 14.
Bd3 {[%clk 0:02:24.5]} 14... Nc5 {[%clk 0:02:34.4]} 15. Nc3 {[%clk 0:02:18.2]}
15... Bc6 {[%clk 0:02:31.4]} 16. O-O {[%clk 0:02:11]} 16... e6 {[%clk 0:02:30]}
17. Rfd1 {[%clk 0:02:04.1]} 17... Qe7 {[%clk 0:02:28.8]} 18. Bb1 {[%clk
0:01:47.3]} 18... Rfd8 {[%clk 0:02:22.6]} 19. Bg5 {[%clk 0:01:45.9]} 19... Bf6
{[%clk 0:02:21.1]} 20. Bxf6 {[%clk 0:01:13.1]} 20... Qxf6 {[%clk 0:02:22]} 21.
Qd4 {[%clk 0:01:13.1]} 21... Qe7 {[%clk 0:02:07.2]} 22. Rd2 {[%clk 0:00:58.3]}
22... e5 {[%clk 0:02:01.5]} 23. Qe3 {[%clk 0:00:53]} 23... Rab8 {[%clk
0:01:57.5]} 24. Rcd1 {[%clk 0:00:52.1]} 24... Ne6 {[%clk 0:01:55]} 25. Ne2
{[%clk 0:00:32.8]} 25... b5 {[%clk 0:01:50.4]} 26. cxb5 {[%clk 0:00:28.5]} 26...
Bxb5 {[%clk 0:01:50.4]} 27. Bd3 {[%clk 0:00:28.3]} 27... Bxd3 {[%clk 0:01:37.8]}
28. Rxd3 {[%clk 0:00:25.4]} 28... Nc5 {[%clk 0:01:36.9]} 29. Rd5 {[%clk
0:00:24.4]} 29... a4 {[%clk 0:01:35.9]} 30. bxa4 {[%clk 0:00:17.3]} 30... Nxa4
{[%clk 0:01:28.3]} 31. Nc3 {[%clk 0:00:05.5]} 31... Nxc3 {[%clk 0:01:20.4]} 32.
Qxc3 {[%clk 0:00:06.4]} 32... Qa7+ {[%clk 0:01:18.8]} 33. Kh1 {[%clk 0:00:06.1]}
33... Qxa2 {[%clk 0:01:18]} 34. Qd3 {[%clk 0:00:06]} 34... Rb3 {[%clk
0:00:40.5]} 35. Qc4 {[%clk 0:00:02.7]} 35... Qa3 {[%clk 0:00:28.7]} 36. Qc7
{[%clk 0:00:03.1]} 36... Rbb8 {[%clk 0:00:19.7]} 37. h3 {[%clk 0:00:02.7]} 37...
Qa6 {[%clk 0:00:16.3]} 38. Qe7 {[%clk 0:00:02]} 38... Re8 {[%clk 0:00:11]} 39.
Qxd6 {[%clk 0:00:02]} 39... Qa4 {[%clk 0:00:06.3]} 40. Qc5 {[%clk 0:00:02.3]}
40... Qa6 {[%clk 0:00:05.6]} 41. Qd6 {[%clk 0:00:02.5]} 41... Qxd6 {[%clk
0:00:05.4]} 42. Rxd6 {[%clk 0:00:02.8]} 42... Kg7 {[%clk 0:00:05.4]} 43. Rd7
{[%clk 0:00:02.8]} 43... Rb2 {[%clk 0:00:04.5]} 44. R1d2 {[%clk 0:00:02.3]}
44... Rb1+ {[%clk 0:00:04.2]} 45. Kh2 {[%clk 0:00:02.8]} 45... Reb8 {[%clk
0:00:04.9]} 46. Rc2 {[%clk 0:00:02.2]} 46... R8b2 {[%clk 0:00:05.2]} 47. Rxb2
{[%clk 0:00:02.2]} 47... Rxb2 {[%clk 0:00:06.1]} 48. Re7 {[%clk 0:00:02.7]}
48... Kf6 {[%clk 0:00:06.2]} 49. Rc7 {[%clk 0:00:03.1]} 49... h5 {[%clk
0:00:06.2]} 50. Rc6+ {[%clk 0:00:03.3]} 50... Ke7 {[%clk 0:00:06.2]} 51. Rc5
{[%clk 0:00:02.9]} 51... Kd6 {[%clk 0:00:06.1]} 52. Rd5+ {[%clk 0:00:02.6]}
52... Ke6 {[%clk 0:00:06.3]} 53. h4 {[%clk 0:00:03.5]} 53... f6 {[%clk
0:00:06.1]} 54. Rc5 {[%clk 0:00:03.6]} 54... g5 {[%clk 0:00:06.3]} 55. hxg5
{[%clk 0:00:03.3]} 55... fxg5 {[%clk 0:00:07.2]} 56. Kh3 {[%clk 0:00:03.4]}
56... Rb1 {[%clk 0:00:05.4]} 57. Ra5 {[%clk 0:00:02.2]} 57... Rh1+ {[%clk
0:00:05.2]} 58. Kg3 {[%clk 0:00:01.4]} 58... Rg1 {[%clk 0:00:04.6]} 0-1